bitfinex-derivatives/quotes_ETHF0:USTF0_20240928
["timestamp","ask_amount","ask_price","bid_price","bid_amount"]
[1727522366588,4.56073814,2674.9,2674.8,0.3738]
[1727522367883,3.58158,2674.9,2674.8,0.3738]
[1727522368080,4.56047295,2674.9,2674.8,0.3738]
[1727522368585,0.3738,2674.8,2674.7,0.3738]
[1727522368788,0.37381,2674.7,2674.6,2.53712]
[1727522369185,1.7511502,2674.8,2674.7,0.37381]
[1727522370686,4.9589502,2674.8,2674.7,0.37381]
[1727522371489,3.97991,2674.8,2674.7,0.37381]
[1727522371890,3.6061,2674.8,2674.7,0.37381]
[1727522372380,4.58564999,2674.8,2674.7,0.37381]
[1727522372586,4.67653721,2674.8,2674.7,0.37381]
[1727522373386,5.05033721,2674.8,2674.7,0.37381]
[1727522373893,4.67653721,2674.8,2674.7,0.37381]
[1727522374094,5.05033721,2674.8,2674.7,0.37381]
[1727522374492,5.05033721,2674.8,2674.7,1.53115779]
[1727522375290,4.67653721,2674.8,2674.7,1.53115779]
[1727522376093,4.67653721,2674.8,2674.7,2.88115779]
[1727522377094,0.98048881,2674.9,2674.8,1.3083]
[1727522377286,1.95819288,2675.1,2674.9,0.93447]
[1727522377287,0.98048881,2675.1,2674.9,0.93447]
[1727522377595,0.98048881,2675.3,2675.2,0.37374]
[1727522377788,4.18828881,2675.5,2675.4,0.37371]
[1727522378002,4.18828881,2675.5,2675.4,2.88014429]
[1727522378494,4.18828881,2675.5,2675.4,1.72371]
[1727522379496,3.2078,2675.5,2675.4,1.72371]
[1727522379691,3.2078,2675.5,2675.4,5.46131]
[1727522379888,0.98048881,2675.7,2675.6,0.37369]
[1727522380095,3.2078,2675.8,2675.7,0.37367]
[1727522382904,3.2078,2675.8,2675.6,1.35]
[1727522383201,3.2078,2675.8,2675.7,0.37367]
[1727522386707,0.75414,2676.0,2675.8,0.37366]
[1727522387010,3.2078,2675.9,2675.8,0.37366]
[1727522387898,3.2078,2675.9,2675.8,1.72366]
[1727522395112,0.3763,2676.2,2676.0,0.37362]
[1727522395113,3.2078,2676.1,2676.0,0.37362]
[1727522395312,3.2078,2676.1,2676.0,1.72362]
[1727522397510,0.3763,2676.2,2676.0,1.72362]
[1727522397708,3.2078,2676.1,2676.0,1.72362]
[1727522398632,0.3763,2676.2,2676.0,1.72362]
[1727522398915,3.2078,2676.1,2676.0,1.72362]
[1727522399109,0.3763,2676.2,2676.0,1.72362]
[1727522399709,3.2078,2676.1,2676.0,1.72362]
[1727522407121,0.3763,2676.2,2676.1,0.37362]
[1727522407312,3.5841,2676.2,2676.1,0.37362]
[1727522410122,3.95771,2676.2,2676.0,1.72362]
[1727522410428,3.5841,2676.2,2676.0,1.35]
[1727522411515,3.5841,2676.2,2676.1,0.37362]
[1727522415213,3.5841,2676.2,2676.1,1.72362]
[1727522418418,3.2078,2676.2,2676.1,1.72362]
[1727522421924,4.18828881,2676.2,2676.1,1.72362]
[1727522422626,4.67653721,2676.2,2676.1,1.72362]
[1727522425926,3.2078,2676.2,2676.1,1.72362]
[1727522429534,5.16599288,2676.2,2676.1,1.72362]
[1727522429837,3.2078,2676.2,2676.1,1.72362]
[1727522430236,5.16599288,2676.2,2676.1,1.72362]
[1727522431930,1.95819288,2676.2,2676.1,1.72362]
[1727522433537,1.95819288,2676.2,2676.1,2.87775097]
[1727522433933,5.53958288,2676.3,2676.2,0.3736]
[1727522434329,3.58139,2676.3,2676.2,0.3736]
[1727522436841,3.58139,2676.3,2676.2,0.7605]
[1727522438336,3.58139,2676.3,2676.2,0.3869]
[1727522439439,3.58139,2676.3,2676.2,0.7605]
[1727522440947,3.58139,2676.3,2676.2,0.3869]
[1727522441149,3.58139,2676.3,2676.2,0.7605]
[1727522441447,3.58139,2676.3,2675.7,1.72276545]
[1727522441448,0.93405,2676.1,2675.7,1.72276545]
[1727522441646,0.37367,2675.7,2675.6,1.46176545]
[1727522441841,3.386477,2675.7,2675.4,2.81176545]
[1727522442038,0.37371,2675.4,2675.3,3.18096545]
[1727522442244,1.84418964,2675.4,2675.3,2.50461023]
[1727522442548,1.16371,2675.4,2675.3,1.35]
[1727522443155,2.63345425,2675.4,2675.3,1.35]
[1727522443738,2.25974425,2675.4,2675.3,1.72373]
[1727522444251,1.36473313,2675.4,2675.3,1.72373]
[1727522447163,0.3853,2675.4,2675.3,1.72373]
[1727522447973,4.18723313,2675.5,2675.4,0.37371]
[1727522447974,0.97943313,2675.5,2675.4,0.37371]
[1727522448175,3.2078,2675.5,2675.4,1.72371]
[1727522448671,1.73902313,2675.6,2675.4,1.72371]
[1727522448873,0.3737,2675.5,2675.4,1.72371]
[1727522449080,3.2078,2675.5,2675.4,1.72371]
[1727522449764,3.5815,2675.5,2675.4,1.35]
[1727522450165,3.2078,2675.5,2675.4,1.72371]
[1727522450861,3.5815,2675.5,2675.4,1.35]
[1727522451280,3.2078,2675.5,2675.4,1.72371]
[1727522451870,3.5815,2675.5,2675.4,1.35]
[1727522452066,3.2078,2675.5,2675.4,1.72371]
[1727522452462,3.5815,2675.5,2675.4,1.72371]
[1727522452663,3.5815,2675.5,2675.4,1.35]
[1727522453075,3.2078,2675.5,2675.4,1.72371]
[1727522453969,3.2078,2675.5,2675.3,0.37372]
[1727522453970,3.5815,2675.5,2675.3,0.37372]
[1727522454173,3.5815,2675.5,2675.4,1.72371]
[1727522455272,3.2078,2675.5,2675.4,1.72371]
[1727522457368,0.37373,2675.3,2675.2,1.7395]
[1727522457568,0.37373,2675.3,2675.2,2.11324]
[1727522457774,0.37373,2675.3,2675.2,1.7395]
[1727522459478,0.37374,2675.2,2675.1,4.32187193]
[1727522459686,0.37374,2675.2,2674.8,1.98479]
[1727522459687,0.37377,2675.0,2674.8,1.72379]
[1727522459983,0.3738,2674.8,2674.7,0.3958]
[1727522460179,3.5816,2674.8,2674.7,0.3958]
[1727522460784,3.2078,2674.8,2674.7,0.76961]
[1727522462886,3.2078,2674.8,2674.7,1.13961]
[1727522465584,0.37377,2675.0,2674.9,0.37378]
[1727522465886,3.2078,2675.1,2674.9,0.37378]
[1727522465887,3.2078,2675.1,2675.0,0.37377]
[1727522466392,3.2078,2675.1,2675.0,0.75197]
[1727522466789,0.348,2675.4,2675.3,0.37373]
[1727522467092,0.37369,2675.6,2675.4,0.3737]
[1727522467281,0.37369,2675.6,2675.5,0.4082]
[1727522468378,0.37369,2675.6,2675.5,1.7582]
[1727522469183,4.11129,2675.6,2675.5,0.4082]
[1727522469495,0.3737,2675.5,2675.4,1.35]
[1727522469688,3.5815,2675.5,2675.4,1.35]
[1727522471291,0.37372,2675.4,2675.2,1.72373]
[1727522473283,3.58152,2675.4,2675.2,1.72373]
[1727522473481,3.2078,2675.4,2675.2,1.35]
[1727522473682,3.58152,2675.4,2675.2,0.37374]
[1727522475391,0.37372,2675.4,2675.2,0.37374]
[1727522475691,3.2078,2675.3,2675.2,0.37374]
[1727522477590,8.2954,2675.3,2675.1,0.7614]
[1727522477795,0.77364,2675.2,2675.1,0.374]
[1727522478803,6.05211313,2675.2,2674.8,0.3755]
[1727522479099,3.58158,2674.9,2674.8,0.3943]
[1727522479690,3.58158,2674.9,2674.8,0.7681]
[1727522480193,3.58158,2674.9,2674.8,0.3943]
[1727522480883,3.58158,2674.9,2674.8,0.7681]
[1727522482384,3.2078,2674.9,2674.8,0.7681]
[1727522482797,3.58158,2674.9,2674.8,0.7681]
[1727522485295,3.58158,2674.9,2674.8,0.3943]
[1727522485890,3.58158,2674.9,2674.8,0.7681]
[1727522486897,4.56101313,2674.9,2674.8,0.7681]
[1727522487289,4.56101313,2674.9,2674.8,0.3943]
[1727522487808,0.37383,2674.6,2674.5,0.4065]
[1727522488101,0.37383,2674.6,2674.5,0.8002]
[1727522488295,0.37385,2674.4,2674.3,0.4075]
[1727522488793,1.35202651,2674.5,2674.3,0.78136]
[1727522489698,0.37385,2674.4,2674.3,0.78136]
[1727522489894,0.37385,2674.4,2674.3,0.4075]
[1727522490095,0.74655,2674.4,2674.3,0.78137]
[1727522490693,2.09655,2674.4,2674.3,0.78137]
[1727522490900,0.37387,2674.3,2674.2,0.76758]
[1727522491100,3.2078,2674.3,2674.2,0.76758]
[1727522491293,3.58167,2674.3,2674.2,0.3937]
[1727522492190,3.58167,2674.3,2674.2,0.76758]
[1727522492892,3.2078,2674.3,2674.2,0.76758]
[1727522493598,3.58167,2674.3,2674.2,0.3937]
[1727522495902,3.2078,2674.3,2674.2,0.76758]
[1727522496106,3.58167,2674.3,2674.2,0.76758]
[1727522496997,3.58167,2674.3,2674.2,0.3937]
[1727522497691,3.58167,2674.3,2674.2,0.76758]
[1727522498001,3.58167,2674.3,2674.2,0.3937]
[1727522498504,0.3739,2674.1,2674.0,0.7788]
[1727522498701,4.5578,2674.3,2674.0,0.7788]
[1727522498998,0.37388,2674.2,2674.0,0.7788]
[1727522499703,0.3739,2674.1,2674.0,0.7788]
[1727522500799,0.37389,2674.2,2674.0,0.4049]
[1727522500989,0.3739,2674.1,2674.0,0.7854]
[1727522503300,0.3739,2674.1,2674.0,1.15931]
[1727522503999,0.37391,2674.0,2673.9,0.37391]
[1727522504197,3.58171,2674.0,2673.9,0.37391]
[1727522505298,3.58171,2674.0,2673.9,0.74751]
[1727522505803,3.2078,2674.0,2673.9,0.74751]
[1727522508404,3.58171,2674.0,2673.9,0.74751]
[1727522515809,3.2078,2674.0,2673.9,0.74751]
[1727522517505,3.58171,2674.0,2673.9,0.74751]
[1727522522210,3.58171,2674.0,2673.4,1.23862808]
[1727522522211,0.37395,2673.8,2673.4,1.23862808]
[1727522522524,0.37395,2673.8,2673.7,0.37395]
[1727522523405,0.3942,2673.9,2673.6,0.4031]
[1727522523406,0.37395,2673.7,2673.6,0.77706]
[1727522523621,3.58175,2673.7,2673.6,0.77706]
[1727522524330,3.58175,2673.7,2673.5,1.73362808]
[1727522524331,0.37397,2673.6,2673.5,1.73362808]
[1727522524517,5.09,2673.6,2673.3,0.37401]
[1727522524708,10.1427,2673.7,2673.0,1.19612]
[1727522524709,0.37402,2673.3,2673.0,0.261]
[1727522524915,0.7808,2673.2,2673.1,0.37402]
[1727522525114,2.1308,2673.2,2673.1,0.37402]
[1727522525515,0.3942,2673.2,2673.1,0.37402]
[1727522526819,1.35,2673.3,2673.2,0.37402]
[1727522529615,3.2078,2673.4,2673.3,0.37401]
[1727522530023,3.58179,2673.4,2672.9,1.7303]
[1727522530620,3.58179,2673.4,2673.2,0.37401]
[1727522530817,3.58179,2673.4,2673.3,0.76271]
[1727522531514,3.58179,2673.4,2673.3,0.3887]
[1727522531713,3.2078,2673.4,2673.3,0.76271]
[1727522531918,3.58179,2673.4,2673.3,0.3887]
[1727522533421,3.58179,2673.4,2673.3,0.76271]
[1727522533923,3.2078,2673.4,2673.3,0.76271]
[1727522534516,3.2078,2673.4,2673.3,0.3887]
[1727522534517,3.58179,2673.4,2673.3,0.3887]
[1727522536623,3.58179,2673.4,2673.2,0.37401]
[1727522536624,0.37402,2673.3,2673.2,0.37402]
[1727522536830,1.72402,2673.3,2673.2,0.37402]
[1727522538122,0.37404,2673.1,2672.9,0.37406]
[1727522538315,3.58184,2673.1,2672.9,0.37406]
[1727522539023,0.37405,2673.0,2672.9,0.37406]
[1727522539419,0.37406,2672.9,2672.8,0.3788]
[1727522540421,0.37406,2672.9,2672.8,0.75288]
[1727522540827,1.17376,2673.0,2672.8,0.75288]
[1727522541520,2.52376,2673.0,2672.9,0.37406]
[1727522541928,2.12646,2673.0,2672.9,0.37406]
[1727522542227,1.7524,2673.0,2672.9,0.37406]
[1727522542714,2.12645,2673.0,2672.9,0.37406]
[1727522542919,3.2078,2673.1,2673.0,0.37405]
[1727522543929,2.11112,2673.3,2673.1,0.37402]
[1727522544230,2.11112,2673.3,2673.2,0.3881]
[1727522545826,1.72402,2673.3,2673.2,0.3881]
[1727522550332,1.35,2673.3,2673.0,0.37404]
[1727522550528,4.5578,2673.1,2673.0,0.37404]
[1727522552334,4.93184,2673.1,2673.0,0.37404]
[1727522552537,4.5578,2673.1,2673.0,0.37404]
[1727522554228,3.2078,2673.1,2673.0,0.37404]
[1727522554430,3.2078,2673.1,2673.0,5.04997]
[1727522554634,1.46974425,2673.6,2673.4,0.37399]
[1727522554635,3.2078,2673.5,2673.4,0.37399]
[1727522560136,3.2078,2673.5,2673.3,0.816]
[1727522560435,1.35,2673.4,2673.3,0.816]
[1727522560840,1.35,2673.4,2673.3,1.19001]
[1727522561842,1.72399,2673.4,2673.3,1.19001]
[1727522562129,1.72399,2673.4,2673.0,0.37404]
[1727522562130,0.37403,2673.2,2673.0,0.37404]
[1727522562444,0.37403,2673.2,2673.1,0.37404]
[1727522562445,4.93183,2673.2,2673.1,0.37404]
[1727522563537,4.93183,2673.2,2673.0,0.37404]
[1727522564038,4.93183,2673.2,2673.1,0.37404]
[1727522564735,4.93183,2673.2,2672.9,1.35762808]
[1727522566036,4.93183,2673.2,2673.0,0.37405]
[1727522566238,4.93183,2673.2,2672.9,1.35762808]
[1727522567339,5.91000651,2673.2,2673.0,0.97762808]
[1727522567541,5.53597651,2673.2,2673.0,0.97762808]
[1727522568142,5.91000651,2673.2,2673.0,1.35166808]
[1727522568534,5.91000651,2673.2,2673.1,0.37404]
[1727522569740,2.32817651,2673.2,2673.1,0.37404]
[1727522570044,5.53597651,2673.2,2673.1,0.37404]
[1727522570346,2.81974425,2673.2,2673.1,0.37404]
[1727522570843,6.40156425,2673.2,2673.1,0.37404]
[1727522571039,6.40156425,2673.2,2673.1,1.35166808]
[1727522571537,6.02754425,2673.2,2673.1,0.37404]
[1727522574046,6.40156425,2673.2,2673.1,0.37404]
[1727522574347,6.02754425,2673.2,2673.1,0.37404]
[1727522575039,5.5365543,2673.2,2673.1,1.35166808]
[1727522579649,2.3287543,2673.2,2673.1,1.35166808]
[1727522579953,5.5365543,2673.2,2673.1,1.35166808]
[1727522581667,5.9105743,2673.2,2673.1,1.35166808]
[1727522581848,5.5365543,2673.2,2673.1,1.35166808]
[1727522582545,4.5578,2673.2,2673.1,1.35166808]
[1727522583052,6.02754425,2673.2,2673.1,0.37404]
[1727522583250,5.53656418,2673.2,2673.1,1.35166808]
[1727522586150,4.5578,2673.2,2673.1,1.35166808]
[1727522590049,6.02754425,2673.2,2673.1,1.35166808]
[1727522590454,4.5578,2673.2,2673.1,1.35166808]
[1727522591354,5.53697694,2673.2,2673.1,1.35166808]
[1727522591653,4.5578,2673.2,2673.1,1.35166808]
[1727522593447,4.5578,2673.2,2673.1,2.52684684]
[1727522593857,4.5578,2673.2,2673.1,2.52684511]
[1727522594053,4.5578,2673.2,2673.1,2.52684689]
[1727522595652,6.02754425,2673.2,2673.1,1.35166808]
[1727522596762,4.5578,2673.2,2673.1,2.52689689]
[1727522596964,6.02754425,2673.2,2673.1,1.35166808]
[1727522597355,6.02754425,2673.2,2673.1,2.5269015]
[1727522597556,4.5578,2673.2,2673.1,2.5269015]
[1727522597756,6.02754425,2673.2,2673.1,2.5269015]
[1727522597959,6.02754425,2673.2,2673.1,1.35166808]
[1727522598258,2.81974425,2673.2,2673.1,2.52692349]
[1727522598459,6.02754425,2673.2,2673.1,2.52692088]
[1727522599859,6.02754425,2673.2,2673.1,2.52698335]
[1727522600662,4.5578,2673.2,2673.1,2.52698335]
[1727522600869,6.02754425,2673.2,2673.1,2.52698335]
[1727522602262,2.81974425,2673.2,2673.1,1.54935527]
[1727522602468,6.02754425,2673.2,2673.1,1.54935527]
[1727522602858,2.81974425,2673.2,2673.1,1.54935527]
[1727522603057,6.02754425,2673.2,2673.1,1.35523332]
[1727522603261,6.02754425,2673.2,2673.1,3.01140494]
[1727522604466,6.02754425,2673.2,2673.1,1.54963949]
[1727522604665,6.02754425,2673.2,2673.1,3.01154772]
[1727522605565,2.81974425,2673.2,2673.1,3.01154772]
[1727522605769,6.02754425,2673.2,2673.1,3.01154772]
[1727522606368,4.5578,2673.2,2673.1,3.01154772]
[1727522607065,6.02761433,2673.2,2673.1,1.54978227]
[1727522607267,4.5578,2673.2,2673.1,1.54978227]
[1727522607966,6.02797669,2673.2,2673.1,1.54978227]
[1727522608165,4.5578,2673.2,2673.1,3.51156406]
[1727522608768,4.93182,2673.2,2673.1,3.51156406]
[1727522608965,4.93182,2673.2,2673.1,1.55074305]
[1727522609164,6.89382501,2673.2,2673.1,1.55074305]
[1727522609768,6.51980501,2673.2,2673.1,1.55074305]
[1727522610262,4.5578,2673.2,2673.1,1.55074305]
[1727522610861,6.51980501,2673.2,2673.1,1.55074305]
[1727522611063,4.5578,2673.2,2673.1,1.55074305]
[1727522611375,4.5578,2673.2,2673.1,3.51156406]
[1727522612364,3.2078,2673.2,2673.1,3.51156406]
[1727522612560,1.47056057,2673.2,2673.1,3.51156406]
[1727522612767,1.47056057,2673.2,2673.1,5.86583906]
[1727522614663,2.82056057,2673.3,2673.2,0.37402]
[1727522614864,1.35,2673.3,2673.2,1.94862305]
[1727522615268,1.47035115,2673.3,2673.2,7.65024406]
[1727522615767,3.68598501,2673.5,2673.3,0.37401]
[1727522615972,3.68598501,2673.5,2673.4,1.93950305]
[1727522616168,3.68598501,2673.5,2673.4,3.41219717]
[1727522616475,3.68598501,2673.5,2673.4,1.93950305]
[1727522617471,3.68598501,2673.5,2673.4,2.31349305]
[1727522617668,3.68598501,2673.5,2673.4,1.93937427]
[1727522617974,3.68598501,2673.5,2673.4,2.92096394]
[1727522618178,3.68598501,2673.5,2673.4,1.74438967]
[1727522618767,3.68598501,2673.5,2673.4,2.92091768]
[1727522619069,3.68598501,2673.5,2673.4,2.92091201]
[1727522619380,6.51980501,2673.5,2673.4,2.11837967]
[1727522619570,4.5578,2673.5,2673.4,3.29483911]
[1727522619770,6.51980501,2673.5,2673.4,3.29483911]
[1727522619973,6.89378501,2673.5,2673.4,2.92084911]
[1727522620175,6.89378501,2673.5,2673.4,1.74438967]
[1727522623381,3.68598501,2673.5,2673.4,1.74438967]
[1727522623578,6.89378501,2673.5,2673.4,1.74438967]
[1727522627888,6.89378501,2673.5,2673.4,0.7628]
[1727522628081,6.89378501,2673.5,2673.4,1.74438967]
[1727522629278,4.93178,2673.5,2673.4,1.74438967]
[1727522630381,6.89378501,2673.5,2673.4,1.74438967]
[1727522632178,4.93178,2673.5,2673.4,1.74438967]
[1727522632892,6.89378501,2673.5,2673.4,1.74438967]
[1727522633293,6.89378501,2673.5,2673.4,0.7628]
[1727522635181,3.68598501,2673.5,2673.4,0.7628]
[1727522635381,6.89378501,2673.5,2673.4,0.7628]
[1727522636984,3.68598501,2673.5,2673.4,0.7628]
[1727522637186,6.89378501,2673.5,2673.4,0.7628]
[1727522639095,0.37399,2673.4,2673.3,0.98158967]
[1727522639395,2.33599501,2673.4,2673.3,0.98158967]
[1727522639781,0.37399,2673.4,2673.3,0.98158967]
[1727522639984,2.33599501,2673.4,2673.3,0.98158967]
[1727522640185,0.37399,2673.4,2673.3,0.98158967]
[1727522640389,2.33599501,2673.4,2673.3,0.98158967]
[1727522641684,0.37399,2673.4,2673.3,0.98158967]
[1727522641986,2.33599501,2673.4,2673.3,0.98158967]
[1727522642693,2.33599501,2673.4,2673.2,0.98158967]
[1727522642694,0.37401,2673.3,2673.2,0.98158967]
[1727522642888,3.68307617,2673.3,2673.2,1.37688967]
[1727522643085,3.68307617,2673.3,2673.2,0.3953]
[1727522643486,4.06197617,2673.3,2673.2,0.3953]
[1727522643686,4.06197617,2673.3,2673.2,1.37688967]
[1727522651085,3.68307617,2673.3,2673.2,1.37688967]
[1727522651695,1.72401,2673.3,2673.2,1.37688967]
[1727522652989,1.35,2673.3,2673.2,1.75090967]
[1727522653193,3.68305617,2673.4,2673.2,1.75089967]
[1727522653497,3.30906617,2673.4,2673.3,0.37401]
[1727522653896,1.95906617,2673.4,2673.3,0.37401]
[1727522654195,6.51686617,2673.5,2673.4,0.37399]
[1727522654393,6.51686617,2673.5,2673.4,1.13439]
[1727522655193,6.51686617,2673.5,2673.4,0.7604]
[1727522655503,6.89084617,2673.5,2673.4,0.7604]
[1727522661092,3.68304617,2673.5,2673.4,0.7604]
[1727522661289,6.89084617,2673.5,2673.4,0.7604]
[1727522665404,6.51686617,2673.5,2673.4,0.7604]
[1727522665799,6.89084617,2673.5,2673.4,0.7604]
[1727522669401,6.51686617,2673.5,2673.4,0.7604]
[1727522669803,6.89084617,2673.5,2673.4,0.7604]
[1727522670611,3.68304617,2673.5,2673.4,0.7604]
[1727522670907,6.89084617,2673.5,2673.4,0.7604]
[1727522674206,0.37401,2673.3,2673.2,1.37688752]
[1727522674418,2.33332472,2673.3,2673.2,1.37688752]
[1727522681114,2.33332472,2673.3,2673.2,2.55796641]
[1727522681417,2.33332472,2673.3,2673.2,1.37688752]
[1727522682218,5.54112472,2673.3,2673.2,2.55797706]
[1727522683012,3.58181,2673.3,2673.2,1.57638954]
[1727522683213,3.2078,2673.3,2673.2,1.57639125]
[1727522683413,3.2078,2673.3,2673.2,2.55796981]
[1727522683822,3.58181,2673.3,2673.2,2.55796981]
[1727522684219,3.2078,2673.3,2673.2,2.55796981]
[1727522684520,3.58181,2673.3,2673.2,1.57639125]
[1727522686318,5.54112472,2673.3,2673.2,2.55800284]
[1727522687119,5.54112472,2673.3,2673.2,1.37691159]
[1727522687521,5.54112472,2673.3,2673.2,2.55804343]
[1727522687824,5.54112472,2673.3,2673.2,1.37691159]
[1727522689625,5.54112472,2673.3,2673.2,2.55805659]
[1727522690418,5.54112472,2673.3,2673.2,1.37691159]
[1727522690614,5.16711472,2673.3,2673.2,1.37691159]
[1727522690927,3.58181,2673.3,2673.2,2.55807417]
[1727522691122,5.54112472,2673.3,2673.2,2.55807417]
[1727522692837,5.54112472,2673.3,2673.2,2.55809566]
[1727522693018,2.33332472,2673.3,2673.2,2.55809566]
[1727522693321,5.54112472,2673.3,2673.2,2.16279566]
[1727522693625,5.54112472,2673.3,2673.2,0.98161159]
[1727522696118,5.16711472,2673.3,2673.2,0.98161159]
[1727522697620,1.95931472,2673.3,2673.2,0.98161159]
[1727522697827,5.16711472,2673.3,2673.2,0.98161159]
[1727522699729,1.95931472,2673.3,2673.2,0.98161159]
[1727522699954,5.16711472,2673.3,2673.2,0.98161159]
[1727522701635,5.54112472,2673.3,2673.2,0.98161159]
[1727522702431,5.16711472,2673.3,2673.2,2.16340799]
[1727522702637,5.16711472,2673.3,2673.2,0.98161159]
[1727522702839,5.16711472,2673.3,2673.2,2.16342106]
[1727522703525,5.16711472,2673.3,2673.2,2.53744106]
[1727522705635,3.2078,2673.3,2673.2,3.02852359]
[1727522706143,4.5578,2673.3,2673.2,3.02853744]
[1727522708838,3.2078,2673.3,2673.2,3.02853744]
[1727522709032,4.67744972,2673.3,2673.2,1.55584332]
[1727522709639,4.67744972,2673.3,2673.2,3.51666433]
[1727522709943,4.67744972,2673.3,2673.2,1.55584332]
[1727522710740,1.46964972,2673.3,2673.2,3.51666523]
[1727522711244,3.30931472,2673.5,2673.4,0.37399]
[1727522711542,3.30931472,2673.5,2673.4,2.53735489]
[1727522711746,3.30931472,2673.5,2673.4,1.35561292]
[1727522711935,3.30931472,2673.5,2673.4,1.73311292]
[1727522712843,3.30931472,2673.5,2673.4,1.35912292]
[1727522713236,3.68329472,2673.5,2673.4,1.35912292]
[1727522713636,3.30931472,2673.5,2673.4,1.73311292]
[1727522714134,3.30931472,2673.5,2673.4,1.35912292]
[1727522714741,3.68329472,2673.5,2673.4,1.35912292]
[1727522715144,3.68329472,2673.5,2673.4,1.73311292]
[1727522715145,3.30931472,2673.5,2673.4,1.73311292]
[1727522715443,3.30931472,2673.5,2673.4,1.35912292]
[1727522715641,3.68329472,2673.5,2673.4,1.35912292]
[1727522716946,3.30931472,2673.5,2673.4,1.35912292]
[1727522717334,3.68329472,2673.5,2673.4,1.35912292]
[1727522718143,3.30931472,2673.5,2673.4,1.35912292]
[1727522719436,0.9798778,2673.6,2673.4,9.94899461]
[1727522719640,1.46967527,2673.7,2673.6,0.37397]
[1727522719641,0.9798778,2673.7,2673.6,0.37397]
[1727522719845,0.9798778,2673.8,2673.7,0.37395]
[1727522720149,0.9798778,2673.8,2673.7,2.74465906]
[1727522720341,4.1876778,2673.9,2673.8,0.37394]
[1727522720540,4.1876778,2673.9,2673.8,1.55567773]
[1727522720749,4.1876778,2673.9,2673.8,1.94777773]
[1727522721045,3.2078,2673.9,2673.8,1.94777773]
[1727522721247,4.18682238,2673.9,2673.8,1.74677271]
[1727522721749,4.18682238,2673.9,2673.8,1.37283271]
[1727522723046,4.18682238,2673.9,2673.8,0.3921]
[1727522723447,5.53682238,2673.9,2673.8,0.76604]
[1727522723746,5.53682238,2673.9,2673.8,0.3921]
[1727522723747,4.93172,2673.9,2673.8,0.3921]
[1727522724050,6.77959527,2673.9,2673.8,0.3921]
[1727522724353,7.17919527,2673.9,2673.8,0.3921]
[1727522725249,0.37395,2673.8,2673.5,1.73691271]
[1727522725450,1.35,2673.7,2673.6,0.3986]
[1727522725747,1.72395,2673.7,2673.6,0.3986]
[1727522726348,0.37397,2673.6,2673.5,1.36293271]
[1727522726546,0.37398,2673.5,2673.4,0.7721]
[1727522729350,1.35229279,2673.5,2673.4,0.3986]
[1727522729655,1.84365527,2673.5,2673.4,0.3986]
[1727522730646,1.46967527,2673.5,2673.4,0.3986]
[1727522730860,6.77784527,2673.6,2673.4,0.3986]
[1727522731052,1.84365527,2673.5,2673.4,0.3986]
[1727522731556,1.46967527,2673.5,2673.4,0.3986]
[1727522731852,1.84365527,2673.5,2673.4,0.3986]
[1727522732753,1.46967527,2673.5,2673.4,0.3986]
[1727522733255,1.84365527,2673.5,2673.4,0.3986]
[1727522734348,1.46967527,2673.5,2673.4,0.3986]
[1727522734756,6.77785527,2673.6,2673.4,0.3986]
[1727522735951,1.46967527,2673.5,2673.4,0.3986]
[1727522737951,1.84365527,2673.5,2673.4,0.3986]
[1727522738763,1.46967527,2673.5,2673.4,0.3986]
[1727522739355,4.67747527,2673.5,2673.4,0.3986]
[1727522740863,5.05145527,2673.5,2673.4,0.3986]
[1727522741360,4.67747527,2673.5,2673.4,0.3986]
[1727522744070,8.79225527,2673.5,2673.3,0.75461]
[1727522744368,8.79225527,2673.5,2673.3,0.37401]
[1727522744369,2.70964162,2673.4,2673.3,0.37401]
[1727522746453,2.70964162,2673.4,2673.2,1.34963271]
[1727522747354,2.70964162,2673.4,2673.3,0.37401]
[1727522749252,5.91744162,2673.4,2673.3,0.37401]
[1727522749757,5.53604162,2673.4,2673.3,0.37401]
[1727522750366,2.32824162,2673.4,2673.3,0.37401]
[1727522750861,5.53604162,2673.4,2673.3,0.37401]
[1727522754660,2.32824162,2673.4,2673.3,0.37401]
[1727522757973,2.32848743,2673.4,2673.3,0.37401]
[1727522759474,5.53628743,2673.4,2673.3,0.37401]
[1727522760366,2.32848743,2673.4,2673.3,0.37401]
[1727522760571,0.97848743,2673.4,2673.3,0.37401]
[1727522760765,0.97846017,2673.4,2673.3,0.37401]
[1727522760961,4.18626017,2673.4,2673.3,0.37401]
[1727522763768,0.97846017,2673.4,2673.3,0.37401]
[1727522764067,4.18626017,2673.4,2673.3,0.37401]
[1727522767377,3.2078,2673.4,2673.3,1.35474271]
[1727522768266,4.67747527,2673.4,2673.3,1.35474271]
[1727522769179,4.67747527,2673.4,2673.3,2.53628412]
[1727522770270,4.67747527,2673.4,2673.3,3.02665393]
[1727522770672,1.46967527,2673.4,2673.3,3.02665393]
[1727522770875,4.67747527,2673.4,2673.3,3.02665393]
[1727522771176,4.67747527,2673.4,2673.3,3.02684082]
[1727522772178,3.69251472,2673.5,2673.3,3.02684082]
[1727522772480,3.69251472,2673.5,2673.4,2.16407719]
[1727522772680,3.69251472,2673.5,2673.4,2.57287719]
[1727522772881,3.69251472,2673.5,2673.4,2.57288331]
[1727522773077,3.69251472,2673.5,2673.4,2.57288324]
[1727522773281,1.7332,2673.5,2673.4,1.39057809]
[1727522773581,3.69229464,2673.5,2673.4,2.57297482]
[1727522773777,3.69229464,2673.5,2673.4,2.94696482]
[1727522773778,1.95909464,2673.5,2673.4,2.94696482]
[1727522773985,1.95909464,2673.5,2673.4,3.06229925]
[1727522775180,6.433547,2673.6,2673.4,2.57323113]
[1727522775386,1.9593953,2673.5,2673.4,1.87990252]
[1727522775579,1.9593953,2673.5,2673.4,3.06246915]
[1727522775773,1.9593953,2673.5,2673.4,3.06246861]
[1727522776172,2.3333753,2673.5,2673.4,3.06246861]
[1727522777180,1.9593953,2673.5,2673.4,3.43645861]
[1727522777375,2.452277,2673.7,2673.5,0.37398]
[1727522777376,2.3333453,2673.7,2673.5,0.37398]
[1727522777581,1.9593953,2673.7,2673.6,2.6553133]
[1727522778180,2.3333453,2673.8,2673.6,2.6553133]